Cogmind - Beta 17 @@@ ROGUE MODE // 2026.07.20 @ 20:17:07 Player: TheTravelingGuy Result: Self-destructed Performance ------------- Evolutions (4) 2000 Regions Visited (6) 1200 Robots Destroyed (121) 605 Value Destroyed (3387) 3387 Prototype IDs (5) 100 Alien Tech Used (0) 0 Bonus (247) 247 TOTAL SCORE: 7539 Bonus ------- High Alert Combat Kills 96 Follower Combat Kills 151 Cogmind --------- Core Integrity 582/850 Matter 348/450 Energy 92/100 System Corruption 0% Temperature Cool (6) Movement Walking (120) Location -6/Factory Parts ------- > --- POWER (1) -------- (None) > --- PROPULSION (4) --- Carbon-fiber Leg Improved Carbon-fiber Leg Improved VSS Leg > --- UTILITY (8) ------ Medium Storage Unit Large Matter Pod Machine Analyzer IFF Parser Improved Targeting Computer Hacking Suite > --- WEAPON (2) ------- Heavy Laser > --- INVENTORY (10) --- Energy Well (350) Improved Hardlight Generator Improved Field Recycling Unit (9) Heavy Assault Cannon Guided Missile Launcher Peak State ------------ > --- POWER ------------ Light Angular Momentum Engine > --- PROPULSION ------- Carbon-fiber Leg Improved Carbon-fiber Leg Improved Carbon-fiber Leg Improved VSS Leg > --- UTILITY ---------- Medium Storage Unit Energy Well Machine Analyzer IFF Parser Improved Targeting Computer Improved Hardlight Generator Hacking Suite > --- WEAPON ----------- Heavy Assault Cannon > --- INVENTORY -------- Light Deuterium Engine Carbon-fiber Leg Improved Carbon-fiber Leg Large Matter Pod Improved Field Recycling Unit High-powered Shotgun Guided Missile Launcher [Rating: 53] Favorites ----------- Power Ion Engine Engine Ion Engine Power Core Light Nuclear Core Propulsion Aluminum Leg Treads Light Treads Leg Aluminum Leg Utility Improved Targeting Computer Device IFF Parser Storage Medium Storage Unit Processor Improved Targeting Computer Hackware Hacking Suite Protection Hardened Light Armor Plating Weapon Improved Assault Rifle Energy Gun EM Pulse Gun Ballistic Gun Improved Assault Rifle Ballistic Cannon Assault Cannon Launcher Guided Missile Launcher Build | -11 -10 -9 -9 -8 -7 -6 ------- Run | Yrd Mat Mat Sto Mat Fac Fac Slots Evolved 8 | . . 2 . 2 2 2 Power . | . . . . . . . Propulsion 2 | . . . . 1 . 1 Utility 6 | . . 2 . 1 2 1 Weapon . | . . . . . . . Parts Attached 78 | 9 5 14 13 14 2 21 Power 12 | 1 1 2 3 3 . 2 Engine 10 | 1 1 2 3 1 . 2 Core 2 | . . . . 2 . . Reactor . | . . . . . . . Propulsion 22 | 3 2 1 3 6 . 7 Treads 1 | 1 . . . . . . Leg 21 | 2 2 1 3 6 . 7 Wheel . | . . . . . . . Hover . | . . . . . . . Flight . | . . . . . . . Utility 26 | 2 1 5 5 2 2 9 Device 10 | 1 . 1 3 . . 5 Storage 5 | 1 1 . 1 . . 2 Processor 4 | . . 2 1 . . 1 Hackware 2 | . . 1 . . 1 . Protection 5 | . . 1 . 2 1 1 Artifact . | . . . . . . . Weapon 18 | 3 1 6 2 3 . 3 Energy Gun 5 | 2 1 1 . . . 1 Energy Cannon . | . . . . . . . Ballistic Gun 8 | 1 . 4 1 2 . . Ballistic Cannon 2 | . . . . 1 . 1 Launcher 3 | . . 1 1 . . 1 Special Weapon . | . . . . . . . Impact Weapon . | . . . . . . . Slashing Weapon . | . . . . . . . Piercing Weapon . | . . . . . . . Special Melee Weapon . | . . . . . . . Unidentified Prototypes 5 | . . 1 3 . . 1 Parts Lost 31 | . 5 4 3 7 1 11 Power 6 | . 1 1 . 2 . 2 Propulsion 7 | . 1 . 1 2 . 3 Utility 10 | . 1 2 1 1 . 5 Weapon 8 | . 2 1 1 2 1 1 Highest Loss Streak 5 | . 4 2 1 5 1 4 To Critical Strikes . | . . . . . . . Average Backups 7 | 3 5 9 8 8 6 7 Power . | . . . . . . . Propulsion 1 | 1 2 3 2 . 2 1 Utility 2 | . 1 2 2 3 1 3 Weapon 2 | . . 3 3 4 2 2 Tool/Special . | . . . . . . . Unused Backups 13 | . 1 . 6 3 1 2 Power 1 | . . . . . . 1 Propulsion 2 | . 1 . . . . 1 Utility 7 | . . . 4 2 1 . Weapon 3 | . . . 2 1 . . Tool/Special . | . . . . . . . Average Slot Usage (%) 94 | . 77 95 95 98 99 91 Engine 6 | . 9 11 10 . . 3 Core 2 | . . . . 7 7 1 Leg 24 | . 25 22 21 26 23 25 Device 2 | . 4 3 3 . . 4 Storage 9 | . 14 11 11 9 7 7 Processor 15 | . . 13 17 18 15 17 Hackware 10 | . . 11 11 9 15 11 Protection 5 | . . 2 . 8 14 6 Energy Gun 1 | . 9 8 . . . . Ballistic Gun 11 | . 12 12 16 15 7 3 Ballistic Cannon 2 | . . . . 1 7 4 Peak Build Rating 53 | 7 7 17 24 31 34 53 Average Rating 25 | 5 5 12 20 28 33 44 On Entrance 16 | . 7 7 17 21 28 34 Avg Prop Armor Cover (%) 13 | 17 . . . . . 13 Naked Turns . | . . . . . . . Heaviest Build 41 | 15 20 21 29 29 33 41 Greatest Support 68 | 20 20 20 20 47 42 68 Greatest Overweight (x) 1 | . 1 1 1 . . . Average Overweight (x) . | . . . 1 . . . Largest Inventory Capacity 10 | 8 10 10 10 10 10 10 Average Capacity 9 | 7 9 10 10 10 10 10 Most Carried 10 | 6 10 10 10 10 10 10 Average Carried 8 | 3 5 9 9 9 8 9 Final Capacity 10 | 8 10 10 10 10 10 10 Final Carried 10 | 5 10 10 10 10 10 7 Class Distribution -------------------- 52% | Mutant 27% | Hacker-Mutant 19% | Scavenger-Mutant Dominant Class ---------------- Mutant | -10/Materials Scavenger-Mutant | -9/Materials Mutant | -9/Storage Mutant | -8/Materials Hacker-Mutant | -7/Factory Hacker-Mutant | -6/Factory Resources | -11 -10 -9 -9 -8 -7 -6 ----------- Run | Yrd Mat Mat Sto Mat Fac Fac Matter Collected 3007 | 329 223 250 533 572 74 1026 Remotely . | . . . . . . . Salvage Created 3749 | 97 471 297 901 942 64 977 Parts 224 | 11 34 16 71 52 6 34 Haulers Intercepted 2 | . . 1 1 . . . Recyclers Shooed 5 | . . . 2 1 . 2 Parts Field Recycled 2 | . . . . . . 2 Retrieved Matter 26 | . . . . . . 26 Parts Self-Destructed . | . . . . . . . Prevented . | . . . . . . . Parts Restored . | . . . . . . . Kills | -11 -10 -9 -9 -8 -7 -6 ------- Run | Yrd Mat Mat Sto Mat Fac Fac Combat Hostiles Destroyed 76 | . 8 8 19 15 4 22 Guns 50 | . 6 6 16 13 3 6 Cannons 14 | . . . . 2 1 11 AOE 12 | . 2 2 3 . . 5 Classes Destroyed 14 | 2 4 4 1 2 . 1 Worker 13 | 1 1 1 3 4 . 3 Builder 12 | . 2 . 3 3 . 4 Tunneler 4 | 4 . . . . . . Hauler 2 | . . 1 1 . . . Recycler 4 | . 1 . 2 . . 1 Operator 3 | . 1 . 1 1 . . Watcher 5 | . . . 2 2 . 1 Swarmer 15 | . . 2 5 . 4 4 Grunt 45 | . 8 4 10 8 . 15 Brawler 2 | . . . . 1 . 1 Duelist 3 | . . 1 . . . 2 Sentry 11 | . . 1 4 5 . 1 Programmer 1 | . . . . . . 1 Heavy 1 | . . . . 1 . . Best Kill Streak 12 | 2 9 3 8 5 2 12 Combat Bots Only 6 | . 5 3 5 4 2 6 Max Kills in Single Turn 5 | 1 4 2 5 1 1 2 Gunslinging 1 | . . 1 . . . . Exploded 2 | . 2 2 2 . . 1 Melee . | . . . . . . . Uniques/NPCs Destroyed . | . . . . . . . Combat | -11 -10 -9 -9 -8 -7 -6 -------- Run | Yrd Mat Mat Sto Mat Fac Fac Hostile Shots Fired 502 | . 65 42 99 80 27 189 Missed 161 | . 19 14 35 25 8 60 Hits 341 | . 46 28 64 55 19 129 Melee 5 | . . 5 . . . . Projectile 336 | . 46 23 64 55 19 129 Critical Strikes 9 | . . 3 . 1 1 4 Damage Taken 5237 | . 643 422 683 1206 279 2004 Core 801 | . 142 78 138 142 33 268 Absorbed by Shields 114 | . . . . . . 114 Redirected to Shielding 72 | . . . . . . 72 Core Remaining (%) 71 | 100 43 . 46 74 95 . Volleys Fired 321 | 19 48 29 56 69 14 86 Largest 2 | 1 2 2 2 2 2 2 Hottest 94 | 20 80 60 46 60 62 94 Shots Fired 507 | 19 65 50 106 137 23 107 Gun 393 | 19 65 45 101 123 9 31 Cannon 93 | . . . . 14 14 65 Launcher 21 | . . 5 5 . . 11 Special . | . . . . . . . Kinetic 430 | 19 37 27 101 137 23 86 Thermal 35 | . 7 18 . . . 10 Explosive 21 | . . 5 5 . . 11 Electromagnetic 21 | . 21 . . . . . Robot Hit Streak 30 | 5 9 4 15 30 4 9 Robot Miss Streak 5 | 2 4 3 3 2 4 5 Penetration Max 1 | . . . . . . 1 Secondary Targets 7 | . 1 2 3 1 . . Max Gunslinging Chain 1 | . 1 1 1 1 . . Shots Hit Robots 364 | 13 40 30 89 108 11 73 Core Hits 198 | 5 22 21 42 45 7 56 Critical Kills 2 | . . . . 1 . 1 Critical Parts Destroyed 2 | . . . 1 1 . . Critical Strikes 10 | . 1 . 1 3 . 5 Burn 1 | . . . . . . 1 Destroy 4 | . . . 1 2 . 1 Blast 4 | . . . . 1 . 3 Corrupt 1 | . 1 . . . . . Melee Attacks . | . . . . . . . Impact . | . . . . . . . Slashing . | . . . . . . . Piercing . | . . . . . . . Sneak Attacks . | . . . . . . . Combat Hostiles . | . . . . . . . Follow-up Attacks . | . . . . . . . Damage Inflicted 9170 | 177 683 563 2009 1768 223 3747 Guns 4329 | 177 497 305 1273 1554 101 422 Cannons 2119 | . . . . 214 122 1783 Explosions 2722 | . 186 258 736 . . 1542 Melee . | . . . . . . . Ramming . | . . . . . . . Kinetic 5969 | 177 248 192 1273 1768 223 2088 Thermal 590 | . 227 113 . . . 250 Explosive 2403 | . . 258 736 . . 1409 Electromagnetic 208 | . 208 . . . . . Impact . | . . . . . . . Slashing . | . . . . . . . Piercing . | . . . . . . . Highest Corruption . | . . . . . . . Average Corruption . | . . . . . . . Corruption Purged . | . . . . . . . Corruption Blocked . | . . . . . . . Overload Shots . | . . . . . . . Overflow Damage 240 | . 13 . 39 . . 188 Projectiles 131 | . . . . . . 131 Explosions 109 | . 13 . 39 . . 57 Melee . | . . . . . . . Knockbacks 15 | . . . . 2 1 12 Impact . | . . . . . . . Kinetic 12 | . . . . 2 1 9 Secondary 3 | . . . . . . 3 Self-Inflicted Damage 113 | . 36 21 . . . 56 Shots 3 | . 1 1 . . . 1 Rammed . | . . . . . . . Targets Rammed . | . . . . . . . Kicked . | . . . . . . . Crushed . | . . . . . . . Highest Temperature 218 | . 218 46 2 136 27 34 Average Temperature 37 | . 75 16 2 56 10 8 Received Heat Transfer 1677 | . 342 102 231 333 . 669 Effects 2 | . 2 . . . . . Energy Bleed 1 | . 1 . . . . . Interference 1 | . 1 . . . . . Siege Activations . | . . . . . . . Martial Activations . | . . . . . . . Shielding Activations . | . . . . . . . Robots Disrupted . | . . . . . . . Combat Hostiles . | . . . . . . . Robots Corrupted 2 | . . . . . . 2 Combat Hostiles . | . . . . . . . Parts Fried 4 | . . . . . . 4 Impact Corruptions 2 | . . . . . . 2 Robots Melted . | . . . . . . . Combat Hostiles . | . . . . . . . Parts Melted . | . . . . . . . Heat Transferred 896 | . 250 250 . . . 396 Parts Sabotaged . | . . . . . . . Parts Stolen . | . . . . . . . Parts Stripped . | . . . . . . . Power Chain Reactions 1 | . 1 . . . . . Alert | -11 -10 -9 -9 -8 -7 -6 ------- Run | Yrd Mat Mat Sto Mat Fac Fac Maximum Alert Level 2 | . . . 1 . . 2 Low Security (%) 89 | 100 100 100 98 100 100 57 Level 1 2 | . . . 1 . . 10 Level 2 7 | . . . . . . 32 Level 3 . | . . . . . . . Level 4 . | . . . . . . . Level 5 . | . . . . . . . High Security . | . . . . . . . Max Security . | . . . . . . . Peak Influence 583 | 10 93 127 219 170 162 583 Initial 70 | . . 34 30 40 70 16 Average 111 | . 47 69 89 80 102 228 Influence Increases 2774 | 25 243 285 645 469 172 935 Destroy 0b10 Robot/C 1600 | . 160 160 380 300 80 520 Destroy 0b10 Robot/NC 215 | 25 25 10 60 50 . 45 Destroy Leader 394 | . 40 42 116 84 10 102 Allied During Kill 19 | . . . . . . 19 Successful Hack 13 | . . . 9 . . 4 Select Force Hacks 20 | . . . . . . 20 Disable Machine 210 | . . 15 30 . 45 120 Destroy Structure 213 | . 3 43 50 5 7 105 Partial Spotted 15 | . 15 . . . . . Lose Combat Pursuer 75 | . . 15 . 30 30 . Influence Decreases 2237 | 25 160 295 622 411 292 432 Entered New Map 250 | . . 49 43 56 84 18 Time Decay 1497 | 25 110 206 389 285 198 284 Lost Part 310 | . 50 40 30 70 10 110 Lost Ally 30 | . . . 10 . . 20 Purge Threat 150 | . . . 150 . . . Squads Dispatched 23 | . 3 1 7 2 . 10 Investigation 6 | . 1 1 3 . . 1 Extermination 2 | . . . . . . 2 Reinforcement 10 | . 2 . 3 2 . 3 Assault . | . . . . . . . Garrison 5 | . . . 1 . . 4 Intercept . | . . . . . . . Searches Triggered . | . . . . . . . Construction Impeded 3 | . . . 1 . . 2 Haulers Reinforced 1 | . . . . . . 1 Active Scanning Responses . | . . . . . . . Cargo Convoy Interrupts . | . . . . . . . Stealth | -11 -10 -9 -9 -8 -7 -6 --------- Run | Yrd Mat Mat Sto Mat Fac Fac Distress Signals 9 | . 1 . 5 2 . 1 Communications Jammed . | . . . . . . . Distress Signals . | . . . . . . . Times Spotted 119 | . 17 10 27 25 7 33 Peak Tracking Total 5 | . 5 4 5 4 4 5 Tactical Retreats 3 | . . 1 . 1 1 . Traps | -11 -10 -9 -9 -8 -7 -6 ------- Run | Yrd Mat Mat Sto Mat Fac Fac Traps Triggered 2 | . . 1 1 . . . Indirectly . | . . . . . . . Trap Hack Attempts . | . . . . . . . Triggered . | . . . . . . . Disarmed 3 | . . . 3 . . . Reprogrammed . | . . . . . . . Reused . | . . . . . . . Traps Extracted . | . . . . . . . Installed . | . . . . . . . Triggered . | . . . . . . . Machines | -11 -10 -9 -9 -8 -7 -6 ---------- Run | Yrd Mat Mat Sto Mat Fac Fac Machines Disabled 14 | . . 1 2 . 3 8 Max in Single Turn 6 | . . 1 1 . 2 6 Garrison Access 1 | . . . 1 . . . Machines Repaired . | . . . . . . . Machines Dismantled . | . . . . . . . Machines Sabotaged . | . . . . . . . Overloaded Fab Kills . | . . . . . . . Hacking | -11 -10 -9 -9 -8 -7 -6 --------- Run | Yrd Mat Mat Sto Mat Fac Fac Machines Accessed 15 | . 1 . 10 1 . 3 Terminals 11 | . 1 . 9 . . 1 Fabricators 1 | . . . . . . 1 Repair Stations . | . . . . . . . Recycling Units . | . . . . . . . Scanalyzers 1 | . . . . 1 . . Garrison Access 2 | . . . 1 . . 1 Total Hacks 33 | . 3 . 21 2 . 7 Successful 16 | . 1 . 11 1 . 3 Failed 17 | . 2 . 10 1 . 4 Catastrophic 1 | . . . . . . 1 Database Lockouts . | . . . . . . . Manual 15 | . 3 . 11 . . 1 Terminals 25 | . 3 . 19 . . 3 Fabricators 2 | . . . . . . 2 Repair Stations . | . . . . . . . Recycling Units . | . . . . . . . Scanalyzers 2 | . . . . 2 . . Garrison Access 4 | . . . 2 . . 2 Terminal Hacks 11 | . . . 10 . . 1 Open Door 5 | . . . 5 . . . Open DSF 1 | . . . . . . 1 Alert Level 1 | . . . 1 . . . Unreport Threat 1 | . . . 1 . . . Locate Traps 1 | . . . 1 . . . Disarm Traps 1 | . . . 1 . . . Recall Investigation 1 | . . . 1 . . . Fabricator Hacks 1 | . . . . . . 1 Build 1 | . . . . . . 1 Repair Station Hacks . | . . . . . . . Recycling Unit Hacks . | . . . . . . . Scanalyzer 1 | . . . . 1 . . Insert Component 1 | . . . . 1 . . Garrison Access Hacks 1 | . . . 1 . . . Seal Access 1 | . . . 1 . . . Unauthorized Hacks 2 | . 1 . . . . 1 Terminals 1 | . 1 . . . . . Botnet 1 | . 1 . . . . . Fabricators 1 | . . . . . . 1 Download 1 | . . . . . . 1 Repair Stations . | . . . . . . . Recycling Units . | . . . . . . . Scanalyzers . | . . . . . . . Garrison Access . | . . . . . . . Data Cores Recovered . | . . . . . . . Used . | . . . . . . . Hacking Detections 11 | . 1 . 7 1 . 2 Full Trace Events 3 | . 1 . 2 . . . Feedback Events . | . . . . . . . Feedback Blocked . | . . . . . . . Robot Schematics Acquired . | . . . . . . . Robots Built 3 | . . . . . . 3 Authchips . | . . . . . . . Time 134 | . . . . . . 134 Total Robot Build Rating 12 | . . . . . . 12 Part Schematics Acquired . | . . . . . . . Parts Built . | . . . . . . . Authchips . | . . . . . . . Time . | . . . . . . . Total Part Build Rating . | . . . . . . . Part Studies Acquired . | . . . . . . . Parts Repaired . | . . . . . . . Time . | . . . . . . . Parts Recycled . | . . . . . . . Recycled Matter . | . . . . . . . Retrieved Matter . | . . . . . . . Retrieved Components . | . . . . . . . Parts Scanalyzed . | . . . . . . . Part Schematics Acquired . | . . . . . . . Parts Damaged . | . . . . . . . Bothacking | -11 -10 -9 -9 -8 -7 -6 ------------ Run | Yrd Mat Mat Sto Mat Fac Fac Used RIF Installer . | . . . . . . . Robots Hacked . | . . . . . . . Non-combat . | . . . . . . . Combat . | . . . . . . . Robot Hacks Applied . | . . . . . . . Relay Couplers Released . | . . . . . . . Fabnet Peak Effective % . | . . . . . . . Robots Rewired . | . . . . . . . Allies Hacked . | . . . . . . . Hacks Repelled . | . . . . . . . Allies | -11 -10 -9 -9 -8 -7 -6 -------- Run | Yrd Mat Mat Sto Mat Fac Fac Total Allies 3 | . . . . . . 3 Largest Group 3 | . . . . . . 3 Highest-Rated Group 90 | . . . . . . 90 Highest-Rated Ally 30 | . . . . . . 30 Total Orders 5 | . . . 5 . . . ROAM 1 | . . . 1 . . . EXPLORE 4 | . . . 4 . . . Ally Attacks 24 | . . . . . . 24 Total Damage 715 | . . . . . . 715 Kills 4 | . . . . . . 4 Allies Corrupted . | . . . . . . . Allies Melted . | . . . . . . . Intel | -11 -10 -9 -9 -8 -7 -6 ------- Run | Yrd Mat Mat Sto Mat Fac Fac Active Infowar (turns) 1310 | 35 92 118 285 . . 780 Sensors 403 | . . 118 285 . . . IFF 382 | . . . . . . 382 Seismic 127 | 35 92 . . . . . Machine Analysis 780 | . . . . . . 780 Robot Analysis Total . | . . . . . . . Derelict Logs Recovered . | . . . . . . . Drone Launches 4 | . . . 4 . . . Drone Recoveries 3 | . . . 3 . . . Exploration | -11 -10 -9 -9 -8 -7 -6 ------------- Run | Yrd Mat Mat Sto Mat Fac Fac Turns Passed 4132 | 263 291 423 1092 687 419 957 Spaces Moved 2111 | 174 121 242 397 335 305 537 Core 7 | 7 . . . . . . Treads . | . . . . . . . Legs 2104 | 167 121 242 397 335 305 537 Wheels . | . . . . . . . Hover . | . . . . . . . Flight . | . . . . . . . Fastest Speed 50 | 50 120 120 190 120 123 110 Average Speed 134 | 117 129 128 190 122 123 118 Slowest Speed 190 | 120 190 190 190 123 123 122 Overloaded Moves . | . . . . . . . Propulsion Burnouts . | . . . . . . . Robots Hopped . | . . . . . . . Potential Cave-ins . | . . . . . . . Cave-ins Triggered . | . . . . . . . Exploration Rate (%) 23 | 7 22 12 67 40 5 13 Regions Visited 6 Branch Regions 1 Pre-discovered Areas . | . . . . . . . Known Exits Taken 1 | . . 1 . . . . Unknown Exits Taken 5 | 1 1 . 1 1 1 . Scrap Searched . | . . . . . . . Spaces Dug . | . . . . . . . Terrain Destroyed 254 | . 2 50 53 3 6 140 Melee . | . . . . . . . Projectile 23 | . . . . 3 . 20 AOE 231 | . 2 50 53 . 6 120 Terrain Rammed . | . . . . . . . Walls Destroyed . | . . . . . . . Machines Disabled . | . . . . . . . Actions | -11 -10 -9 -9 -8 -7 -6 --------- Run | Yrd Mat Mat Sto Mat Fac Fac Total 2892 | 213 192 311 639 478 326 733 Wait 215 | . . 3 125 39 . 48 Move 2105 | 173 120 241 396 334 304 537 Hop . | . . . . . . . Pick Up 88 | 12 12 14 22 12 4 12 Fast Attach 9 | . 1 . 2 . . 6 Attach 55 | 7 5 10 8 9 3 13 Detach 4 | . 1 . . . . 3 Swap 34 | 2 1 7 7 7 . 10 Drop 61 | . 4 7 23 8 1 18 Fire 321 | 19 48 29 56 69 14 86 Melee . | . . . . . . . Ram . | . . . . . . . Kick . | . . . . . . . Crush . | . . . . . . . Escape Stasis . | . . . . . . . Rewire . | . . . . . . . Trap . | . . . . . . . Miscellaneous . | . . . . . . . Route ------- -11/Scrapyard -10/Materials -9/Materials -9/Storage -8/Materials -7/Factory -6/Factory History --------- Turn | Location | Event 8 | -11/Scrapyard | Discovered new exit (range 16) 264 | -11/Scrapyard | Entered Materials 300 | -10/Materials | Build established: Mutant 400 | -10/Materials | Lost 4 parts (1p1u2w) 513 | -10/Materials | Core integrity fell below 50% 534 | -10/Materials | Discovered new exit (range 14) 555 | -10/Materials | Entered another Materials area 555 | -9/Materials | Evolved 2 slots: Utility x2 556 | -9/Materials | Discovered new exit (range 16) 777 | -9/Materials | Identified exit to Storage 978 | -9/Materials | Entered Storage 1024 | -9/Storage | Build established: Scavenger-Mutant 1150 | -9/Storage | Found Prototype Launcher 1152 | -9/Storage | Identified Gui. Missile Launcher 1550 | -9/Storage | Garrison activated, responded to threat 1572 | -9/Storage | Core integrity fell below 50% 1639 | -9/Storage | Build established: Mutant 1991 | -9/Storage | Discovered new exit (range 15) 2070 | -9/Storage | Entered Materials 2070 | -8/Materials | Evolved 2 slots: Propulsion x1, Utility x1 2634 | -8/Materials | Lost 5 parts (2p1n2w) 2677 | -8/Materials | Found Prototype Device 2734 | -8/Materials | Discovered new exit (range 16) 2757 | -8/Materials | Entered Factory 2757 | -7/Factory | Evolved 2 slots: Utility x2 2811 | -7/Factory | Discovered new exit (range 16) 3055 | -7/Factory | Build established: Hacker-Mutant 3176 | -7/Factory | Entered another Factory area 3176 | -6/Factory | Evolved 2 slots: Propulsion x1, Utility x1 3446 | -6/Factory | Garrison activated, responded to threat 3691 | -6/Factory | Fabricated L-41 Fighter? 3715 | -6/Factory | Garrison activated, responded to threat 4054 | -6/Factory | Lost 4 parts (1p2n1w) 4133 | -6/Factory | Self-destructed Last Messages --------------- 04023_ S-27 Virus destroyed. 04023_ Imp. Carbon-fiber Leg destroyed. 04023_ U-05 Engineer lays Concrete. 04033_ S-27 Virus destroyed. 04038_ Acquired 10 matter. 04039_ K-01 Serf collects debris. 04040_ U-05 Engineer lays Concrete. 04043_ U-05 Engineer builds a Wall. 04043_ U-05 Engineer lays Concrete. 04053_ R-10 Processor collects Lgt. Ion Engine. 04054_ U-05 Engineer lays Concrete. 04055_ K-01 Serf collects debris. 04055_ U-05 Engineer builds a Wall. 04056_ U-05 Engineer lays Concrete. 04080_ ALERT: Potential suspicious activity detected, Programmers report to Factory Zone 2T. 04090_ Connecting with DSF Access... 04123_ W-25 Informer sends out distress signal. 04129_ Carbon-fiber Leg destroyed. 04132_ Adv. Heat Sink destroyed. Map ----- +----------------------------------------------------+ | ?????????????????????????????????????????????????? | | ?????????????????????????????????????????????????? | | ?????????????????????????????????????????????????? | | ???????????????????????????????????????########### | | ???????????????????????????? ######+#### | | ????????????????????????????? | | ??????????????????????????????? | | ?????????????????????####+###????# | | ?????????????????????# ###### | | ?????????????????????# """ # ## | | ?????????????????????# """ + | | | ?????????????????????# """ # ########## T###### | | ?????????????????????# ## ##????????####????? | | ?????????????????????# ## ####??????????????? | | ?????????????????????###+##### #??????????????? | | ???????????????????????# #???# #??????????????? | | ???????????????????????# ##### #?????"?"?"?"?"? | | ???????????????????????# #?????"?"?"?"?"? | | ???????????????????????## ##?????"?"?"?"?"? | | ????????????????????????# w#??????"?"?"?"?"? | | ???????????????????###### #??????"?"?"?"?" | | ???????????????????# #?? #?"?"?"?" " | | ???????????????????# # #?"?"?" " " | | ???????????????????+ + ??"?"?" " " | | ???????????????????# g #??????"?"?"?" " | | ???????????????????# p @g #??????????? | | ???????????????????# ######+#### +?????? | | ???????????????????# ????? ??? #?????###### | | ???????????????????#??????"""???? #??????????# | | ????????????????????????? """ ???? #?????"""??# | | ????????????????????????? """ ????? ?????"""??? | | ???????????????????????? ????? ??????"""??? | | ???????????????????????? """ ??????????????????# | | ??????????????????????? """ #?????????????????# | | ??????????????????????? ????? #?????????????????# | | ??????????????????????# ????? #?????????????????? | | ??????????????????????##?????????????????????????? | | ?????????????????????????????????????????????????? | | ?????????????????????????????????????????????????? | | ?????????????????????????????????????????????????? | | ?????????????????????????????????????????????????? | | ?????????????????????????????????????????????????? | | ?????????????????????????????????????????????????? | | ?????????????????????????????????????????????????? | | ?????????????????????????????????????????????????? | | ?????????????????????????????????????????????????? | | ?????????????????????????????????????????????????? | | ?????????????????????????????????????????????????? | | ?????????????????????????????????????????????????? | | ?????????????????????????????????????????????????? | +----------------------------------------------------+ Best States ------------- Heat Dissipation 56 Energy Generation 18 Energy Capacity 500 Matter Stores 343 Matter Capacity 450 Sight Range 16 Robot Scan Range 14 Terrain Scan Density 10 Armor Coverage 300 Propulsion Shielding 66 Evasion (%) 55 Targeting Accuracy 12 Recoil Reduction 1 Offensive Hacking 20 Item Schematics ----------------- None Robot Schematics ------------------ None Fabricated ------------ L-41 Fighter | x3 | -6/Factory | Preloaded Repaired ---------- Nothing Studied --------- None Alien Tech Used ----------------- None Achievements -------------- Brute Force Challenges ------------ None Game ------ Seed NeutrinoNovaTube Manual? 0 Play Time 00:43:14 Cumulative 37.5 hours Start 2026.07.20 @ 19:36:36 End 2026.07.20 @ 20:17:07 Sessions 1 Manual Loads 0 Difficulty Rogue Special Mode None Game No. 64 Rogue 63 Adventurer 1 Explorer 0 Win Type - Total 0 Types 0/0/0/0/0/0/0/0/0/0 Lore% 30 Gallery% 29 Achievement% 21 Wizard Run 0 Options --------- Layout 0 ASCII 0 Keyboard 0 Movement Mouse Keybinds 0 Fullscreen 2 Font 18/SmallcapsGlow Map View 76x50 Zoom Use 0% Tactical HUD 1 Map Filters NONE Filters NONE Steam 1 RUN: d11cbe91-b59e-4c41-ab90-ec86b2aef74b